[Event "Torneo Nuevo Centro. Jornada 8"]
[Site "Chess.com"]
[Date "2020.08.07"]
[Round "1"]
[White "Tormos Beltran, Maite"]
[Black "Aymerich Rosell, Pablo"]
[Result "0-1"]
[WhiteElo "1430"]
[BlackElo "1934"]
[TimeControl "180+2"]
[EndTime "10:32:53 PDT"]
[Termination "Victoria de jasikevic por abandono"]

1. d4 {[%clk 0:03:01.6]} 1... Nf6 {[%clk 0:03:00]} 2. c4 {[%clk 0:03:03.3]} 2...
g6 {[%clk 0:02:59.8]} 3. Nc3 {[%clk 0:03:05.2]} 3... Bg7 {[%clk 0:02:59.4]} 4.
Nf3 {[%clk 0:03:07.1]} 4... d6 {[%clk 0:02:59.1]} 5. g3 {[%clk 0:03:09]} 5...
O-O {[%clk 0:02:59.6]} 6. Bg2 {[%clk 0:03:10.9]} 6... Nc6 {[%clk 0:03:00.4]} 7.
O-O {[%clk 0:03:12.8]} 7... e5 {[%clk 0:03:01.3]} 8. Re1 {[%clk 0:03:14.7]} 8...
Bg4 {[%clk 0:02:56.8]} 9. d5 {[%clk 0:03:16.6]} 9... Bxf3 {[%clk 0:02:55.5]} 10.
e4 {[%clk 0:03:18.5]} 10... Bxg2 {[%clk 0:02:55.9]} 11. dxc6 {[%clk 0:03:18.1]}
11... Bh3 {[%clk 0:02:52.9]} 12. cxb7 {[%clk 0:03:17.5]} 12... Rb8 {[%clk
0:02:53.8]} 13. Qb3 {[%clk 0:03:17.7]} 13... Nd7 {[%clk 0:02:46.7]} 14. Nb5
{[%clk 0:03:18.7]} 14... Rxb7 {[%clk 0:02:44.9]} 15. a4 {[%clk 0:03:17.6]} 15...
Nc5 {[%clk 0:02:45.1]} 16. Qc3 {[%clk 0:03:15.3]} 16... Qd7 {[%clk 0:02:39.6]}
17. Be3 {[%clk 0:03:15.7]} 17... Ne6 {[%clk 0:02:34.7]} 18. Rad1 {[%clk
0:03:16]} 18... a6 {[%clk 0:02:31.7]} 19. Na3 {[%clk 0:03:09.6]} 19... f5 {[%clk
0:02:27]} 20. c5 {[%clk 0:03:10.3]} 20... f4 {[%clk 0:02:25]} 21. Bc1 {[%clk
0:03:02.2]} 0

[Event "Torneo Nuevo Centro. Jornada 8"]
[Site "Chess.com"]
[Date "2020.08.07"]
[Round "1"]
[White "Castellano López, Javier"]
[Black "Miranda Calvo, Max Rodrigo"]
[Result "1-0"]
[WhiteElo "1889"]
[BlackElo "1348"]
[TimeControl "180+2"]
[EndTime "10:34:05 PDT"]
[Termination "Victoria de its_xavi_official por abandono"]

1. d4 {[%clk 0:03:01.9]} 1... d5 {[%clk 0:02:59.4]} 2. Bf4 {[%clk 0:03:01]} 2...
h5 {[%clk 0:02:56.3]} 3. h4 {[%clk 0:02:59.7]} 3... Bf5 {[%clk 0:02:49.6]} 4. e3
{[%clk 0:02:52.9]} 4... e6 {[%clk 0:02:50.3]} 5. c3 {[%clk 0:02:51.8]} 5... Nd7
{[%clk 0:02:47.2]} 6. Be2 {[%clk 0:02:48.6]} 6... Be7 {[%clk 0:02:41.6]} 7. Nf3
{[%clk 0:02:40.2]} 7... Ngf6 {[%clk 0:02:34.2]} 8. Bd3 {[%clk 0:02:33]} 8... Bg4
{[%clk 0:02:20.5]} 9. Nbd2 {[%clk 0:02:31.2]} 9... O-O {[%clk 0:02:20.6]} 10.
Qc2 {[%clk 0:02:31.6]} 10... c6 {[%clk 0:02:19.8]} 11. O-O {[%clk 0:02:29.9]}
11... Bxf3 {[%clk 0:02:09.2]} 12. Nxf3 {[%clk 0:02:31.8]} 12... Ne4 {[%clk
0:02:09.1]} 13. Bxe4 {[%clk 0:02:25.2]} 13... dxe4 {[%clk 0:02:11]} 14. Qxe4
{[%clk 0:02:26.3]} 14... Bxh4 {[%clk 0:02:11.3]} 15. g3 {[%clk 0:01:52.9]} 15...
f5 {[%clk 0:01:54.2]} 16. Qxe6+ {[%clk 0:01:50.1]} 1

[Event "Torneo Nuevo Centro. Jornada 8"]
[Site "Chess.com"]
[Date "2020.08.07"]
[Round "1"]
[White "Martínez Escandell, Alfonso"]
[Black "Perrot, Fabien "]
[Result "1-0"]
[WhiteElo "1836"]
[BlackElo "1003"]
[TimeControl "180+2"]
[EndTime "10:35:45 PDT"]
[Termination "Victoria de Alfonso10 por abandono"]

1. e4 {[%clk 0:02:59.5]} 1... e5 {[%clk 0:02:50.8]} 2. Nf3 {[%clk 0:03:00.2]}
2... Nc6 {[%clk 0:02:44]} 3. Bb5 {[%clk 0:03:00.5]} 3... a6 {[%clk 0:02:43.7]}
4. Ba4 {[%clk 0:02:57.9]} 4... b5 {[%clk 0:02:44.1]} 5. Bb3 {[%clk 0:02:58.7]}
5... Be7 {[%clk 0:02:37.4]} 6. c3 {[%clk 0:02:59.1]} 6... Nf6 {[%clk 0:01:38.9]}
7. d3 {[%clk 0:02:50.2]} 7... d6 {[%clk 0:01:39.6]} 8. O-O {[%clk 0:02:49.8]}
8... Bg4 {[%clk 0:01:40.6]} 9. h3 {[%clk 0:02:51.1]} 9... Bh5 {[%clk 0:01:41.1]}
10. Re1 {[%clk 0:02:52]} 10... O-O {[%clk 0:01:41.6]} 11. Nbd2 {[%clk
0:02:52.5]} 11... a5 {[%clk 0:01:38.8]} 12. Nf1 {[%clk 0:02:50.2]} 12... a4
{[%clk 0:01:39.4]} 13. Bc2 {[%clk 0:02:49.8]} 13... Qd7 {[%clk 0:01:37.6]} 14.
Ng3 {[%clk 0:02:49.7]} 14... Bg6 {[%clk 0:01:37.6]} 15. Nh4 {[%clk 0:02:47.7]}
15... Nh5 {[%clk 0:01:25.9]} 16. Nxg6 {[%clk 0:02:48.2]} 16... fxg6 {[%clk
0:01:25.7]} 17. Nxh5 {[%clk 0:02:47.5]} 17... gxh5 {[%clk 0:01:22.8]} 18. Qxh5
{[%clk 0:02:48.4]} 18... Bd8 {[%clk 0:01:09.4]} 19. Be3 {[%clk 0:02:45.3]} 19...
Qf7 {[%clk 0:01:05.1]} 20. Qxf7+ {[%clk 0:02:44.5]} 20... Rxf7 {[%clk 0:01:07]}
21. b3 {[%clk 0:02:42.7]} 21... axb3 {[%clk 0:01:04.1]} 22. Bxb3 {[%clk
0:02:43.4]} 22... Bf6 {[%clk 0:00:54.6]} 23. Bxf7+ {[%clk 0:02:31.8]} 23... Kxf7
{[%clk 0:00:56.5]} 24. Reb1 {[%clk 0:02:30.9]} 24... Rf8 {[%clk 0:00:58.4]} 25.
Rxb5 {[%clk 0:02:30.9]} 25... Kg8 {[%clk 0:00:58.5]} 26. Rb7 {[%clk 0:02:30.4]}
26... Rc8 {[%clk 0:00:58.7]} 27. a4 {[%clk 0:02:30]} 27... Na5 {[%clk
0:00:58.9]} 28. Rb5 {[%clk 0:02:28.4]} 28... Nc6 {[%clk 0:00:59]} 29. a5 {[%clk
0:02:28.1]} 29... Ne7 {[%clk 0:00:59.2]} 30. a6 {[%clk 0:02:28.3]} 30... Nc6
{[%clk 0:00:59.5]} 31. a7 {[%clk 0:02:28]} 31... Nxa7 {[%clk 0:01:00.7]} 32.
Rxa7 {[%clk 0:02:28.2]} 1

[Event "Torneo Nuevo Centro. Jornada 8"]
[Site "Chess.com"]
[Date "2020.08.07"]
[Round "1"]
[White "Blanco Solaz, Ramón"]
[Black "Gukasov, Artem"]
[Result "1-0"]
[WhiteElo "1964"]
[BlackElo "1521"]
[TimeControl "180+2"]
[EndTime "10:36:30 PDT"]
[Termination "Victoria de Rbs77 por abandono"]

1. g3 {[%clk 0:03:00.3]} 1... Nf6 {[%clk 0:02:59.7]} 2. c4 {[%clk 0:03:00.6]}
2... g6 {[%clk 0:02:58.9]} 3. Bg2 {[%clk 0:02:59.5]} 3... Bg7 {[%clk 0:02:59]}
4. Nc3 {[%clk 0:03:01]} 4... O-O {[%clk 0:02:58.1]} 5. e4 {[%clk 0:03:02.5]}
5... d6 {[%clk 0:02:58.9]} 6. Nge2 {[%clk 0:03:04]} 6... e5 {[%clk 0:02:59.7]}
7. O-O {[%clk 0:03:05.3]} 7... Nc6 {[%clk 0:02:57.9]} 8. d3 {[%clk 0:03:05.8]}
8... Re8 {[%clk 0:02:53.7]} 9. h3 {[%clk 0:03:06.6]} 9... Qe7 {[%clk 0:02:54.4]}
10. Be3 {[%clk 0:03:07.4]} 10... Be6 {[%clk 0:02:46.7]} 11. Qd2 {[%clk
0:03:04.7]} 11... a6 {[%clk 0:02:45.8]} 12. b3 {[%clk 0:03:04.1]} 12... Rab8
{[%clk 0:02:41.1]} 13. f4 {[%clk 0:03:02.2]} 13... Bd7 {[%clk 0:02:38.9]} 14.
Rae1 {[%clk 0:02:54.3]} 14... h5 {[%clk 0:02:29.4]} 15. d4 {[%clk 0:02:46]}
15... exd4 {[%clk 0:02:25.4]} 16. Nxd4 {[%clk 0:02:47.9]} 16... Nh7 {[%clk
0:02:21.2]} 17. Nd5 {[%clk 0:02:42.8]} 17... Qd8 {[%clk 0:02:17.2]} 18. f5
{[%clk 0:02:36.8]} 18... Nf6 {[%clk 0:02:03.9]} 19. Bg5 {[%clk 0:02:33.1]} 19...
Nxe4 {[%clk 0:01:34.7]} 20. Rxe4 {[%clk 0:02:29.7]} 20... f6 {[%clk 0:01:27.8]}
21. Rxe8+ {[%clk 0:02:25.6]} 21... Bxe8 {[%clk 0:01:28.7]} 22. Be3 {[%clk
0:02:25.1]} 22... Nxd4 {[%clk 0:01:22.7]} 23. Bxd4 {[%clk 0:02:25.8]} 23... c6
{[%clk 0:01:22.5]} 24. Nf4 {[%clk 0:02:25]} 24... g5 {[%clk 0:01:22.7]} 25. Ne6
{[%clk 0:02:25.5]} 25... Qe7 {[%clk 0:01:23.2]} 26. Nxg5 {[%clk 0:02:19.6]}
26... fxg5 {[%clk 0:01:22.6]} 27. f6 {[%clk 0:02:21]} 27... Bxf6 {[%clk
0:01:01.2]} 28. Bxf6 {[%clk 0:02:18.9]} 28... Qf7 {[%clk 0:00:54.6]} 29. Qxg5+
{[%clk 0:02:16.7]} 29... Qg6 {[%clk 0:00:54.7]} 30. Qe3 {[%clk 0:02:08.9]} 30...
Bd7 {[%clk 0:00:46.7]} 31. Be4 {[%clk 0:02:09.5]} 31... Qf7 {[%clk 0:00:37.9]}
32. Qg5+ {[%clk 0:02:09.6]} 32... Kf8 {[%clk 0:00:38.7]} 33. Be7+ {[%clk
0:02:08.3]} 1

[Event "Torneo Nuevo Centro. Jornada 8"]
[Site "Chess.com"]
[Date "2020.08.07"]
[Round "1"]
[White "Conejero Martínez, Víctor"]
[Black "Pedros Viudes, Santiago"]
[Result "0-1"]
[WhiteElo "1376"]
[BlackElo "1912"]
[TimeControl "180+2"]
[EndTime "10:37:43 PDT"]
[Termination "Victoria de ElGatoKamsky por jaque mate"]

1. d4 {[%clk 0:02:59.2]} 1... Nf6 {[%clk 0:02:58.3]} 2. c4 {[%clk 0:02:59.7]}
2... e5 {[%clk 0:02:48.9]} 3. Nc3 {[%clk 0:02:56.8]} 3... Nc6 {[%clk 0:02:47.5]}
4. Nf3 {[%clk 0:02:53]} 4... exd4 {[%clk 0:02:45.7]} 5. Nxd4 {[%clk 0:02:52.4]}
5... Bb4 {[%clk 0:02:41.3]} 6. Bg5 {[%clk 0:02:33.2]} 6... Bxc3+ {[%clk
0:02:21.5]} 7. bxc3 {[%clk 0:02:34.1]} 7... h6 {[%clk 0:02:20.2]} 8. Bf4 {[%clk
0:02:32.5]} 8... d6 {[%clk 0:02:10.1]} 9. e3 {[%clk 0:02:25.5]} 9... O-O {[%clk
0:02:06.2]} 10. Bd3 {[%clk 0:02:24.7]} 10... Ne5 {[%clk 0:02:05]} 11. Be2 {[%clk
0:01:52.2]} 11... Re8 {[%clk 0:01:30.4]} 12. Nf3 {[%clk 0:01:46.4]} 12... Ng6
{[%clk 0:01:26.4]} 13. Bg3 {[%clk 0:01:40.7]} 13... b6 {[%clk 0:01:24.9]} 14.
Nh4 {[%clk 0:01:36.7]} 14... Ne5 {[%clk 0:01:09.3]} 15. O-O {[%clk 0:01:19]}
15... Ba6 {[%clk 0:01:08]} 16. Bxe5 {[%clk 0:01:15.4]} 16... dxe5 {[%clk
0:01:09.9]} 17. Qc2 {[%clk 0:00:48.9]} 17... Qd7 {[%clk 0:00:54.5]} 18. Rfd1
{[%clk 0:00:42.3]} 18... Qe6 {[%clk 0:00:55]} 19. Qa4 {[%clk 0:00:34.5]} 19...
Bb7 {[%clk 0:00:54.2]} 20. Bf3 {[%clk 0:00:28.1]} 20... e4 {[%clk 0:00:51.8]}
21. Be2 {[%clk 0:00:20.4]} 21... g5 {[%clk 0:00:51.7]} 22. f3 {[%clk 0:00:14]}
22... exf3 {[%clk 0:00:53.6]} 23. Nxf3 {[%clk 0:00:14]} 23... Qxe3+ {[%clk
0:00:49.5]} 24. Kh1 {[%clk 0:00:10.7]} 24... Ng4 {[%clk 0:00:43.8]} 25. Re1
{[%clk 0:00:10.2]} 25... Nf2+ {[%clk 0:00:43.2]} 26. Kg1 {[%clk 0:00:09.9]}
26... Nh3+ {[%clk 0:00:43.8]} 27. Kf1 {[%clk 0:00:10.3]} 27... Qf2# {[%clk
0:00:44.3]} 0

[Event "Torneo Nuevo Centro. Jornada 8"]
[Site "Chess.com"]
[Date "2020.08.07"]
[Round "1"]
[White "Ainsa Jimenez, Lucas"]
[Black "Gómez Alonso, Óscar"]
[Result "0-1"]
[WhiteElo "1045"]
[BlackElo "1838"]
[TimeControl "180+2"]
[EndTime "10:37:50 PDT"]
[Termination "Victoria de osgo78 por tiempo"]

1. e4 {[%clk 0:03:00.5]} 1... c5 {[%clk 0:02:59.9]} 2. Nf3 {[%clk 0:03:00.7]}
2... e6 {[%clk 0:03:00.8]} 3. Bc4 {[%clk 0:02:59.5]} 3... d6 {[%clk 0:02:58.2]}
4. d4 {[%clk 0:02:58.2]} 4... cxd4 {[%clk 0:02:58.7]} 5. Nxd4 {[%clk 0:02:55.4]}
5... Nc6 {[%clk 0:02:59.7]} 6. Nxc6 {[%clk 0:02:55]} 6... bxc6 {[%clk
0:03:00.1]} 7. O-O {[%clk 0:02:50.1]} 7... h6 {[%clk 0:02:55.1]} 8. Nc3 {[%clk
0:02:35.8]} 8... e5 {[%clk 0:02:54.7]} 9. Qf3 {[%clk 0:02:30.5]} 9... Nf6 {[%clk
0:02:55.1]} 10. Be3 {[%clk 0:02:17.7]} 10... Be7 {[%clk 0:02:53.9]} 11. Qg3
{[%clk 0:02:09.7]} 11... g6 {[%clk 0:02:30.1]} 12. Qh4 {[%clk 0:01:52.2]} 12...
Nd5 {[%clk 0:02:01]} 13. Qg3 {[%clk 0:01:32.8]} 13... Nxc3 {[%clk 0:01:59.9]}
14. bxc3 {[%clk 0:01:30.7]} 14... Bh4 {[%clk 0:01:38.5]} 15. Qf3 {[%clk
0:01:21.2]} 15... O-O {[%clk 0:01:36.6]} 16. Bxh6 {[%clk 0:01:13.3]} 16... Be7
{[%clk 0:01:07.8]} 17. Bxf8 {[%clk 0:01:08.8]} 17... Qxf8 {[%clk 0:01:08.2]} 18.
Bb3 {[%clk 0:00:50.8]} 18... Kg7 {[%clk 0:01:08.5]} 19. a4 {[%clk 0:00:20.1]}
19... Bb7 {[%clk 0:01:06]} 20. Qg3 {[%clk 0:00:16.9]} 20... a5 {[%clk
0:00:55.8]} 21. Rad1 {[%clk 0:00:14.2]} 21... Bc8 {[%clk 0:00:49.3]} 22. h3
{[%clk 0:00:09.6]} 22... Qh8 {[%clk 0:00:46.8]} 23. Qf3 {[%clk 0:00:06]} 23...
f6 {[%clk 0:00:46.7]} 0

[Event "Torneo Nuevo Centro. Jornada 8"]
[Site "Chess.com"]
[Date "2020.08.07"]
[Round "1"]
[White "Pardo Ruiz, Carlos"]
[Black "Kovacevic, Slobodan"]
[Result "1-0"]
[WhiteElo "1679"]
[BlackElo "2240"]
[TimeControl "180+2"]
[EndTime "10:38:10 PDT"]
[Termination "Victoria de Carlitoscarlsen por tiempo"]

1. e4 {[%clk 0:03:01.3]} 1... c5 {[%clk 0:02:58.2]} 2. Nf3 {[%clk 0:03:00.1]}
2... e6 {[%clk 0:02:57.5]} 3. d4 {[%clk 0:03:00.7]} 3... cxd4 {[%clk 0:02:56.7]}
4. Nxd4 {[%clk 0:03:02.6]} 4... a6 {[%clk 0:02:57]} 5. Nc3 {[%clk 0:03:02.5]}
5... Qc7 {[%clk 0:02:56.5]} 6. a3 {[%clk 0:03:00.9]} 6... b5 {[%clk 0:02:55.5]}
7. Be3 {[%clk 0:02:59]} 7... Bb7 {[%clk 0:02:54.8]} 8. Qd2 {[%clk 0:02:57.8]}
8... Nf6 {[%clk 0:02:53.5]} 9. f3 {[%clk 0:02:58.3]} 9... b4 {[%clk 0:02:51.1]}
10. axb4 {[%clk 0:02:58.2]} 10... Bxb4 {[%clk 0:02:50.3]} 11. Ra4 {[%clk
0:02:57.7]} 11... Be7 {[%clk 0:02:31.1]} 12. Be2 {[%clk 0:02:49.1]} 12... O-O
{[%clk 0:02:27.7]} 13. O-O {[%clk 0:02:47.9]} 13... d6 {[%clk 0:02:26.3]} 14.
Raa1 {[%clk 0:02:35.4]} 14... Nbd7 {[%clk 0:02:24.1]} 15. Rfd1 {[%clk 0:02:32]}
15... Ne5 {[%clk 0:02:21.9]} 16. Nb3 {[%clk 0:02:30.6]} 16... Rfb8 {[%clk
0:02:10.1]} 17. Na4 {[%clk 0:02:04.7]} 17... Nfd7 {[%clk 0:01:55.3]} 18. Qc3
{[%clk 0:01:58.2]} 18... Nc5 {[%clk 0:00:49.6]} 19. Naxc5 {[%clk 0:01:52.6]}
19... dxc5 {[%clk 0:00:48.9]} 20. Bxc5 {[%clk 0:01:41.7]} 20... Ng6 {[%clk
0:00:37.3]} 21. Bxe7 {[%clk 0:01:38.6]} 21... Qxe7 {[%clk 0:00:35.7]} 22. Qc5
{[%clk 0:01:37]} 22... Qf6 {[%clk 0:00:31.5]} 23. c3 {[%clk 0:01:33.8]} 23... h6
{[%clk 0:00:27.5]} 24. Nd4 {[%clk 0:01:27.4]} 24... Nf4 {[%clk 0:00:23.6]} 25.
Bf1 {[%clk 0:01:25.6]} 25... Kh7 {[%clk 0:00:17.9]} 26. g3 {[%clk 0:01:17.9]}
26... Ng6 {[%clk 0:00:16.5]} 27. Kg2 {[%clk 0:01:16]} 27... Ne5 {[%clk
0:00:15.2]} 28. Be2 {[%clk 0:01:11.2]} 28... g5 {[%clk 0:00:13.6]} 29. Qc7
{[%clk 0:01:00.2]} 29... Kg7 {[%clk 0:00:13.1]} 30. Rf1 {[%clk 0:00:46.9]} 30...
g4 {[%clk 0:00:12.2]} 31. fxg4 {[%clk 0:00:43.1]} 31... Bxe4+ {[%clk 0:00:10.8]}
32. Kg1 {[%clk 0:00:43.5]} 1

[Event "Torneo Nuevo Centro. Jornada 8"]
[Site "Chess.com"]
[Date "2020.08.07"]
[Round "1"]
[White "Luque Saiz, Andrés"]
[Black "Donate Peris, Jose Manuel"]
[Result "1-0"]
[WhiteElo "2003"]
[BlackElo "1543"]
[TimeControl "180+2"]
[EndTime "10:38:32 PDT"]
[Termination "Victoria de Chuch1n por abandono"]

1. e4 {[%clk 0:03:00.7]} 1... e6 {[%clk 0:02:58]} 2. d4 {[%clk 0:03:00.9]} 2...
d5 {[%clk 0:02:58.3]} 3. Nd2 {[%clk 0:03:02.4]} 3... dxe4 {[%clk 0:02:56.7]} 4.
Nxe4 {[%clk 0:03:04.3]} 4... Nf6 {[%clk 0:02:55.5]} 5. Bd3 {[%clk 0:03:02.9]}
5... Nxe4 {[%clk 0:02:54.7]} 6. Bxe4 {[%clk 0:03:04.8]} 6... Bd6 {[%clk
0:02:47.8]} 7. Nf3 {[%clk 0:03:03.4]} 7... Nd7 {[%clk 0:02:46.8]} 8. Qe2 {[%clk
0:02:57.7]} 8... O-O {[%clk 0:02:44]} 9. c3 {[%clk 0:02:56]} 9... Nb6 {[%clk
0:02:42.6]} 10. Bg5 {[%clk 0:02:51]} 10... f6 {[%clk 0:02:37.5]} 11. Bd2 {[%clk
0:02:47]} 11... Re8 {[%clk 0:02:31.7]} 12. O-O {[%clk 0:02:29.5]} 12... Nd5
{[%clk 0:02:29.8]} 13. c4 {[%clk 0:02:13.4]} 13... f5 {[%clk 0:02:23.7]} 14. Bb1
{[%clk 0:02:04]} 14... Nf6 {[%clk 0:02:21.5]} 15. c5 {[%clk 0:01:54]} 15... Be7
{[%clk 0:02:18.8]} 16. Bf4 {[%clk 0:01:54.9]} 16... Bd7 {[%clk 0:02:13]} 17. Ng5
{[%clk 0:01:46.5]} 17... Bf8 {[%clk 0:01:54.7]} 18. Qc4 {[%clk 0:01:30.3]} 18...
Nd5 {[%clk 0:01:47.7]} 19. Be5 {[%clk 0:00:53.8]} 19... Qxg5 {[%clk 0:01:42.3]}
20. a4 {[%clk 0:00:50.3]} 20... b6 {[%clk 0:01:26.8]} 21. Ra3 {[%clk 0:00:48.8]}
21... bxc5 {[%clk 0:01:24.5]} 22. Rg3 {[%clk 0:00:47]} 22... Qe7 {[%clk
0:01:12.2]} 23. dxc5 {[%clk 0:00:34.1]} 23... Nf6 {[%clk 0:01:06.2]} 24. c6
{[%clk 0:00:29.1]} 24... Bc8 {[%clk 0:01:02.8]} 25. Bxf5 {[%clk 0:00:30]} 25...
g6 {[%clk 0:00:56.4]} 26. Bc2 {[%clk 0:00:23.4]} 26... Kf7 {[%clk 0:00:45.4]}
27. Rf3 {[%clk 0:00:23.8]} 27... Bg7 {[%clk 0:00:42.1]} 28. Qc3 {[%clk
0:00:23.1]} 28... Rf8 {[%clk 0:00:32.3]} 29. Bd4 {[%clk 0:00:22.1]} 29... Kg8
{[%clk 0:00:23.5]} 30. Bc5 {[%clk 0:00:23.2]} 30... Qe8 {[%clk 0:00:20.2]} 31.
Bxf8 {[%clk 0:00:23.7]} 31... Qxf8 {[%clk 0:00:20.6]} 32. Qe3 {[%clk 0:00:24.2]}
32... Qe7 {[%clk 0:00:15.5]} 33. Rd1 {[%clk 0:00:23.2]} 33... Nd5 {[%clk
0:00:15]} 34. Rxd5 {[%clk 0:00:23.6]} 1

[Event "Torneo Nuevo Centro. Jornada 8"]
[Site "Chess.com"]
[Date "2020.08.07"]
[Round "1"]
[White "Montesinos Diaz, Luis"]
[Black "Grigorev, Artur "]
[Result "1-0"]
[WhiteElo "1821"]
[BlackElo "975"]
[TimeControl "180+2"]
[EndTime "10:38:34 PDT"]
[Termination "Victoria de Gwiso_06 por tiempo"]

1. d4 {[%clk 0:02:59.7]} 1... d5 {[%clk 0:02:57.7]} 2. c4 {[%clk 0:02:54]} 2...
e6 {[%clk 0:02:53.3]} 3. cxd5 {[%clk 0:02:51.6]} 3... exd5 {[%clk 0:02:51.8]} 4.
Nc3 {[%clk 0:02:53]} 4... Nf6 {[%clk 0:02:50.7]} 5. Bg5 {[%clk 0:02:52]} 5...
Nbd7 {[%clk 0:02:48.2]} 6. e3 {[%clk 0:02:51.2]} 6... h6 {[%clk 0:02:46.8]} 7.
Bh4 {[%clk 0:02:50]} 7... Bb4 {[%clk 0:02:43.2]} 8. Nf3 {[%clk 0:02:48.7]} 8...
b6 {[%clk 0:02:40.1]} 9. Bb5 {[%clk 0:02:27.2]} 9... Bb7 {[%clk 0:02:35.5]} 10.
Ne5 {[%clk 0:02:20.4]} 10... g5 {[%clk 0:02:23.9]} 11. Bg3 {[%clk 0:02:02.4]}
11... O-O {[%clk 0:02:17.6]} 12. Nxd7 {[%clk 0:01:53.8]} 12... Nxd7 {[%clk
0:02:16.5]} 13. Qa4 {[%clk 0:01:52.3]} 13... Bxc3+ {[%clk 0:01:59.5]} 14. bxc3
{[%clk 0:01:54.2]} 14... Bc8 {[%clk 0:01:58.1]} 15. Bc6 {[%clk 0:01:48.1]} 15...
Rb8 {[%clk 0:01:55.4]} 16. Bxd5 {[%clk 0:01:46.6]} 16... Nc5 {[%clk 0:01:13.5]}
17. dxc5 {[%clk 0:01:23.8]} 17... Qxd5 {[%clk 0:01:04.8]} 18. cxb6 {[%clk
0:01:23]} 18... Rxb6 {[%clk 0:00:57.1]} 19. O-O {[%clk 0:01:17]} 19... Bb7
{[%clk 0:00:53.7]} 20. f3 {[%clk 0:01:12.2]} 20... g4 {[%clk 0:00:47.9]} 21.
Qxg4+ {[%clk 0:01:08.7]} 21... Rg6 {[%clk 0:00:44.4]} 22. Qd4 {[%clk 0:01:04.4]}
22... Qe6 {[%clk 0:00:25.3]} 23. Rab1 {[%clk 0:00:57]} 23... Bc6 {[%clk
0:00:20]} 24. Bxc7 {[%clk 0:00:50.2]} 24... Qxa2 {[%clk 0:00:17.4]} 25. Bg3
{[%clk 0:00:38.2]} 25... h5 {[%clk 0:00:15]} 26. Ra1 {[%clk 0:00:36.4]} 26...
Qb3 {[%clk 0:00:12]} 27. Rxa7 {[%clk 0:00:36.7]} 27... h4 {[%clk 0:00:10.5]} 28.
Qxh4 {[%clk 0:00:37]} 28... Qxc3 {[%clk 0:00:07.8]} 29. Qd4 {[%clk 0:00:24.8]}
29... Qxd4 {[%clk 0:00:06.7]} 30. exd4 {[%clk 0:00:26.7]} 30... Rh6 {[%clk
0:00:05.8]} 31. Rd1 {[%clk 0:00:25.7]} 31... Kg7 {[%clk 0:00:05]} 32. d5 {[%clk
0:00:26]} 1

[Event "Torneo Nuevo Centro. Jornada 8"]
[Site "Chess.com"]
[Date "2020.08.07"]
[Round "1"]
[White "Gimenez Saiz, Jose Raul"]
[Black "Sos Andreu, Eric"]
[Result "0-1"]
[WhiteElo "1720"]
[BlackElo "2544"]
[TimeControl "180+2"]
[EndTime "10:39:38 PDT"]
[Termination "Victoria de ericovski por tiempo"]

1. d4 {[%clk 0:03:01.9]} 1... Nf6 {[%clk 0:02:54.4]} 2. e3 {[%clk 0:03:01.6]}
2... g6 {[%clk 0:02:55.3]} 3. Bd3 {[%clk 0:02:59.5]} 3... Bg7 {[%clk 0:02:55.8]}
4. c3 {[%clk 0:02:56.6]} 4... O-O {[%clk 0:02:57.7]} 5. Nd2 {[%clk 0:02:44.7]}
5... d6 {[%clk 0:02:57.5]} 6. f4 {[%clk 0:02:45.7]} 6... Nc6 {[%clk 0:02:57.1]}
7. Ngf3 {[%clk 0:02:46.7]} 7... e5 {[%clk 0:02:57.8]} 8. fxe5 {[%clk 0:02:44.2]}
8... dxe5 {[%clk 0:02:59.7]} 9. O-O {[%clk 0:02:42.8]} 9... Re8 {[%clk
0:02:57.6]} 10. Ne4 {[%clk 0:02:42]} 10... Nxe4 {[%clk 0:02:43.1]} 11. Bxe4
{[%clk 0:02:42.1]} 11... exd4 {[%clk 0:02:43.7]} 12. Bxc6 {[%clk 0:02:34.3]}
12... bxc6 {[%clk 0:02:44.9]} 13. exd4 {[%clk 0:02:34.2]} 13... Qd5 {[%clk
0:02:41.6]} 14. Bf4 {[%clk 0:02:15.8]} 14... Rb8 {[%clk 0:02:39.1]} 15. b3
{[%clk 0:02:11.2]} 15... Qa5 {[%clk 0:02:13.3]} 16. Qd3 {[%clk 0:01:56.4]} 16...
Ba6 {[%clk 0:02:11.9]} 17. c4 {[%clk 0:01:55.4]} 17... Rbd8 {[%clk 0:02:08.7]}
18. Bd2 {[%clk 0:01:44]} 18... Qh5 {[%clk 0:02:05]} 19. Bc3 {[%clk 0:01:29.8]}
19... Bc8 {[%clk 0:01:59.4]} 20. Rae1 {[%clk 0:01:29.3]} 20... Bf5 {[%clk
0:01:57.2]} 21. Qd2 {[%clk 0:01:23.2]} 21... Be4 {[%clk 0:01:54.9]} 22. Qf2
{[%clk 0:01:04.2]} 22... Bxf3 {[%clk 0:01:52]} 23. Rxe8+ {[%clk 0:01:00.1]}
23... Rxe8 {[%clk 0:01:50.4]} 24. Qxf3 {[%clk 0:01:00.5]} 24... Qxf3 {[%clk
0:01:51]} 25. Rxf3 {[%clk 0:01:01.1]} 25... Re2 {[%clk 0:01:39.5]} 26. a4 {[%clk
0:00:52]} 26... Rc2 {[%clk 0:01:39]} 27. Kf1 {[%clk 0:00:48.1]} 27... c5 {[%clk
0:01:36.6]} 28. Rd3 {[%clk 0:00:34]} 28... f5 {[%clk 0:01:29]} 29. Ba5 {[%clk
0:00:21.1]} 29... Bxd4 {[%clk 0:01:25.1]} 30. Bxc7 {[%clk 0:00:21.6]} 30... Rf2+
{[%clk 0:01:23]} 31. Ke1 {[%clk 0:00:16.9]} 31... Rxg2 {[%clk 0:01:24.2]} 32. b4
{[%clk 0:00:14.7]} 32... Kf7 {[%clk 0:01:17.3]} 33. bxc5 {[%clk 0:00:15.3]}
33... Bxc5 {[%clk 0:01:19.2]} 34. Bb8 {[%clk 0:00:14.2]} 34... a5 {[%clk
0:01:12.2]} 35. Rd7+ {[%clk 0:00:14.4]} 35... Ke6 {[%clk 0:01:12]} 36. Rxh7
{[%clk 0:00:15.3]} 36... Rc2 {[%clk 0:01:08.6]} 37. Rg7 {[%clk 0:00:15.7]} 37...
Kf6 {[%clk 0:01:08.6]} 38. Rc7 {[%clk 0:00:15.6]} 38... Rxc4 {[%clk 0:01:09.3]}
39. Rc6+ {[%clk 0:00:16]} 39... Kg5 {[%clk 0:01:04.7]} 40. Ke2 {[%clk
0:00:13.9]} 40... Re4+ {[%clk 0:01:02.3]} 41. Kf3 {[%clk 0:00:14.6]} 41... Bb4
{[%clk 0:00:58.6]} 42. Ra6 {[%clk 0:00:13.5]} 42... Rc4 {[%clk 0:00:53.5]} 43.
Bg3 {[%clk 0:00:09.7]} 43... Rc3+ {[%clk 0:00:50.3]} 44. Kg2 {[%clk 0:00:10.1]}
44... Ra3 {[%clk 0:00:50.3]} 45. Bc7 {[%clk 0:00:09.8]} 45... Rxa4 {[%clk
0:00:50.7]} 46. Bd8+ {[%clk 0:00:07.3]} 46... Kh5 {[%clk 0:00:51.7]} 47. h4
{[%clk 0:00:07.3]} 47... Ra2+ {[%clk 0:00:50.3]} 48. Kf3 {[%clk 0:00:08]} 48...
Ra3+ {[%clk 0:00:47.2]} 49. Kg2 {[%clk 0:00:08.1]} 49... Rd3 {[%clk 0:00:46.3]}
50. Bxa5 {[%clk 0:00:05.8]} 50... Ra3 {[%clk 0:00:46.3]} 0